Cogmind - Beta 16 @@@ ROGUE MODE // 2025.12.04 @ 04:24:28 Player: Red Box Result: Self-destructed Performance ------------- Evolutions (3) 1500 Regions Visited (10) 2000 Robots Destroyed (168) 840 Value Destroyed (5707) 5707 Prototype IDs (39) 780 Alien Tech Used (2) 400 Bonus (1529) 1529 TOTAL SCORE: 12756 Bonus ------- High Alert Combat Kills 15 Follower Combat Kills 549 Met Imprinter 300 Destroyed Z-Imprinter 1000 Triggered Deep Caves Wall 500 Friendly Fire -835 Cogmind --------- Core Integrity 126/700 Matter 259/300 Energy 159/180 System Corruption 20% Temperature Hot (262) Movement Core (850) Ox16 Location -7/Deep Caves Parts ------- > --- POWER (1) -------- Meta Core > --- PROPULSION (3) --- (None) > --- UTILITY (7+1) ---- High-capacity Storage Unit > --- WEAPON (3) ------- Cooled Pulse Rifle > --- INVENTORY (20) --- Fission Core Armored Huge Wheel Zionite Biocell (600) Zionite Biocell (600) Experimental Sensor Array GOLEM Unit Power Maul Peak State ------------ > --- POWER ------------ Meta Core > --- PROPULSION ------- Spiked Medium Treads Improved Titanium Leg Armored Huge Wheel > --- UTILITY ---------- Experimental Heat Sink High-capacity Storage Unit Tactical Coordination Suite Core Analyzer Zionite Light Carapace Hardened Heavy Armor Plating > --- WEAPON ----------- Storm Laser > --- INVENTORY -------- Fission Core Zionite Light DM Reactor Medium Treads Experimental Sensor Array Particle Charger Hardened Heavy Armor Plating Makeshift Thermal Plating Hacking Drone Bay Heavy EM Shotgun Heavy EM Shotgun Heavy Riot Gun Cooled Pulse Rifle Zionite Laser-S Improved EM Pulse Cannon Precision Assault Rifle Slug Cannon Bore Cannon Subdweller Shrapnel Launcher Power Maul [Rating: 94] Favorites ----------- Power Ion Engine Engine Ion Engine Power Core Meta Core Propulsion Aluminum Leg Treads Light Treads Leg Aluminum Leg Wheel Armored Huge Wheel Hover Unit Aerolev Unit Utility High-capacity Storage Unit Device Experimental Sensor Array Storage High-capacity Storage Unit Processor Improved Signal Interpreter Hackware Hacking Suite Protection Makeshift Thermal Plating Weapon Enhanced Autogun Energy Gun EM Pulse Gun Energy Cannon Improved EM Pulse Cannon Ballistic Gun Enhanced Autogun Ballistic Cannon Flak Cannon Launcher Grenade Launcher Impact Weapon Heavy Mace Slashing Weapon Scythe Special Melee Weapon Improved Datajack Build | -11 -10 -10 -10 -8 -8 -7 -7 -7 -7 -7 ------- Run | Yrd Mat Min Sub Mat Sto Fac Low Low Zio Dee Slots Evolved 6 | . . . . 4 . 2 . . . . Power . | . . . . . . . . . . . Propulsion . | . . . . . . . . . . . Utility 5 | . . . . 4 . 1 . . . . Weapon 1 | . . . . . . 1 . . . . Parts Attached 135 | 7 9 2 8 31 13 24 6 6 10 19 Power 13 | 1 1 . 1 4 1 1 . 2 2 . Engine 10 | 1 1 . 1 3 1 1 . 2 . . Core 3 | . . . . 1 . . . . 2 . Reactor . | . . . . . . . . . . . Propulsion 23 | 2 3 . 1 4 4 3 1 1 2 2 Treads 11 | . . . . 2 3 1 1 1 1 2 Leg 8 | 2 3 . 1 1 . . . . 1 . Wheel 3 | . . . . 1 . 2 . . . . Hover 1 | . . . . . 1 . . . . . Flight . | . . . . . . . . . . . Utility 51 | 2 . 2 2 12 3 14 2 1 4 9 Device 21 | 1 . 1 1 3 2 5 1 1 4 2 Storage 4 | 1 . 1 1 . . . . . . 1 Processor 3 | . . . . 1 . 2 . . . . Hackware 4 | . . . . 2 . 2 . . . . Protection 19 | . . . . 6 1 5 1 . . 6 Artifact . | . . . . . . . . . . . Weapon 48 | 2 5 . 4 11 5 6 3 2 2 8 Energy Gun 23 | 1 4 . 2 2 3 2 1 1 2 5 Energy Cannon 4 | . . . 1 2 . . 1 . . . Ballistic Gun 7 | 1 . . . 1 1 3 1 . . . Ballistic Cannon 7 | . . . 1 2 1 . . 1 . 2 Launcher 2 | . 1 . . 1 . . . . . . Special Weapon . | . . . . . . . . . . . Impact Weapon 3 | . . . . 2 . . . . . 1 Slashing Weapon 1 | . . . . 1 . . . . . . Piercing Weapon . | . . . . . . . . . . . Special Melee Weapon 1 | . . . . . . 1 . . . . Unidentified Prototypes 24 | . . 1 1 3 4 2 2 1 3 7 Parts Lost 35 | . 1 . 2 8 1 1 . 1 . 21 Power 3 | . . . 1 1 . . . 1 . . Propulsion 6 | . . . . 1 . 1 . . . 4 Utility 14 | . . . . 4 1 . . . . 9 Weapon 12 | . 1 . 1 2 . . . . . 8 Highest Loss Streak 16 | . 1 . 2 4 1 1 . 1 . 16 To Critical Strikes 1 | . . . . . . . . . . 1 Average Backups 16 | 5 7 9 15 17 19 19 18 17 18 16 Power . | . . . . . . . 1 1 1 1 Propulsion 3 | 3 3 3 3 4 3 4 3 2 1 1 Utility 4 | . . 2 4 4 6 6 5 5 5 4 Weapon 7 | 1 3 3 6 7 8 7 7 7 8 8 Tool/Special . | . . . . . . . . . . . Unused Backups 27 | . 1 . 2 7 2 8 3 . . 4 Power 1 | . . . . . . . . . . 1 Propulsion 7 | . 1 . 1 1 1 2 1 . . . Utility 13 | . . . . 2 1 5 2 . . 3 Weapon 6 | . . . 1 4 . 1 . . . . Tool/Special . | . . . . . . . . . . . Average Slot Usage (%) 91 | . 99 100 98 98 99 96 82 77 81 64 Engine 8 | . 14 14 13 7 9 6 7 6 5 . Treads 3 | . . . . 3 9 4 2 7 6 6 Leg 10 | . 28 28 28 10 . . . . . 3 Wheel 4 | . . . . 3 8 6 7 7 6 5 Device 11 | . 14 14 14 10 6 11 8 14 13 8 Storage 9 | . 14 14 14 9 9 7 7 7 6 5 Processor 6 | . . . . 2 9 7 14 14 12 5 Hackware 5 | . . . . 16 16 13 . . . . Protection 7 | . . . . 14 12 10 11 . 5 11 Energy Gun 12 | . 24 17 17 8 11 8 11 8 13 5 Ballistic Gun 3 | . 3 . . . . 11 7 8 6 . Ballistic Cannon 3 | . . . 8 8 5 . . 1 . . Peak Build Rating 94 | 9 9 16 18 40 44 62 78 79 93 94 Average Rating 42 | 5 8 9 13 32 39 56 65 76 65 80 On Entrance 38 | . 9 9 10 18 40 41 59 78 69 90 Avg Prop Armor Cover (%) 6 | . . . . 7 8 5 4 6 4 5 Naked Turns . | . . . . . . . . . . . Heaviest Build 100 | 13 16 21 52 71 74 92 91 79 100 96 Greatest Support 76 | 20 20 20 20 25 42 28 28 28 28 76 Greatest Overweight (x) 7 | 3 1 1 2 3 4 7 3 2 3 3 Average Overweight (x) 2 | . . . 1 2 3 4 2 2 2 2 Largest Inventory Capacity 20 | 8 8 10 20 20 20 20 20 20 20 20 Average Capacity 18 | 7 8 9 17 20 20 20 20 20 20 20 Most Carried 20 | 7 8 10 20 20 20 20 20 20 20 20 Average Carried 17 | 5 7 9 16 18 19 19 18 19 19 17 Final Capacity 20 | 8 8 10 20 20 20 20 20 20 20 20 Final Carried 20 | 7 8 10 16 20 20 20 20 20 20 9 Class Distribution -------------------- 38% | Mutant 19% | Hacker-Mutant 10% | Tank 8% | Skirmisher 8% | Gunner 6% | Hacker-Skirmisher 4% | Scavenger-Mutant Dominant Class ---------------- Mutant | -10/Materials Mutant | -10/Mines Mutant | -10/Subcaves Hacker-Mutant | -8/Materials Hacker-Mutant | -8/Storage Hacker-Skirmisher | -7/Factory Tank | -7/Lower Caves Skirmisher | -7/Lower Caves Gunner | -7/Zion Tank | -7/Deep Caves Resources | -11 -10 -10 -10 -8 -8 -7 -7 -7 -7 -7 ----------- Run | Yrd Mat Min Sub Mat Sto Fac Low Low Zio Dee Matter Collected 7202 | 312 223 50 410 881 884 1217 867 1258 860 240 Remotely . | . . . . . . . . . . . Salvage Created 6524 | 130 505 21 367 1358 1536 1369 261 551 . 426 Parts 319 | 12 32 3 18 69 64 73 12 24 . 12 Haulers Intercepted 10 | . 1 . . 5 4 . . . . . Recyclers Shooed 1 | . . . . . . 1 . . . . Parts Field Recycled . | . . . . . . . . . . . Retrieved Matter . | . . . . . . . . . . . Parts Self-Destructed 52 | . . . 24 . . . 10 16 2 . Prevented 6 | . . . 1 . . . 5 . . . Parts Restored 1 | . . . . . . 1 . . . . Broken 1 | . . . . . . 1 . . . . Kills | -11 -10 -10 -10 -8 -8 -7 -7 -7 -7 -7 ------- Run | Yrd Mat Min Sub Mat Sto Fac Low Low Zio Dee Combat Hostiles Destroyed 118 | . 10 2 8 18 24 22 6 17 . 11 Guns 64 | . 5 . 6 7 8 19 5 8 . 6 Cannons 30 | . . . 1 8 15 . 1 2 . 3 AOE 20 | . 5 2 . 3 . 3 . 7 . . Classes Destroyed 23 | 2 5 . 1 7 . 2 1 2 . 3 Worker 10 | . . . . 1 4 5 . . . . Builder 2 | . 1 . . . 1 . . . . . Tunneler 7 | 4 2 . . 1 . . . . . . Hauler 10 | . 1 . . 5 4 . . . . . Recycler 10 | 1 . . . 3 4 2 . . . . Operator 1 | . . . . 1 . . . . . . Drone 5 | . . . . . . 5 . . . . Watcher 15 | . 3 . . 5 2 5 . . . . Swarmer 26 | . 3 2 3 . . 7 4 7 . . Grunt 42 | . 7 . 1 7 17 6 . 4 . . Brawler 1 | . . . . 1 . . . . . . Researcher 1 | . . . . . . . 1 . . . Sentry 15 | . . . . 6 7 1 . 1 . . Specialist 2 | . . . . 2 . . . . . . Hunter 3 | . . . . 1 . . 2 . . . Programmer 9 | . . . . . . 8 . 1 . . Heavy 1 | . . . . 1 . . . . . . Subdweller 5 | . . . 4 1 . . . . . . Z-Light 1 | . . . . . . . . . . 1 Samaritan 1 | . . . . . . . . 1 . . Assembled 7 | . . . . . . . . . . 7 Golem 2 | . . . . . . . . . . 2 Savage 3 | . . . . . . . . 3 . . Mutant 1 | . . . . . . . . 1 . . Best Kill Streak 9 | 3 5 2 2 4 9 7 2 4 . 6 Combat Bots Only 9 | . 3 2 2 4 9 4 2 4 . 6 Max Kills in Single Turn 9 | 1 3 2 1 2 3 9 1 2 . 3 Gunslinging 1 | . . . . 1 . 1 . . . . Exploded 2 | . 2 2 . 1 . 2 . 2 . . Melee . | . . . . . . . . . . . Uniques/NPCs Destroyed 1 | . . . . . . . . . . 1 Z-Imprinter (-7/Deep Caves) Combat | -11 -10 -10 -10 -8 -8 -7 -7 -7 -7 -7 -------- Run | Yrd Mat Min Sub Mat Sto Fac Low Low Zio Dee Hostile Shots Fired 673 | . 35 4 35 94 69 101 21 44 . 270 Missed 201 | . 12 3 15 35 23 38 4 8 . 63 Hits 472 | . 23 1 20 59 46 63 17 36 . 207 Melee 40 | . . . . . . . . 1 . 39 Projectile 432 | . 23 1 20 59 46 63 17 35 . 168 AOE 3 | . . . 3 . . . . . . . Critical Strikes 20 | . 1 . . 8 4 1 . . . 6 Part Disruptions 3 | . . . . . . . . . . 3 Damage Taken 9035 | . 346 8 369 1185 733 1009 290 563 . 4532 Core 920 | . 71 8 50 147 70 19 12 22 . 521 Absorbed by Shields 24 | . . . . 24 . . . . . . Ignored by Resistances 337 | . . . . 30 81 20 4 . . 202 Regen/Repaired (Parts) 811 | . 114 . . 182 161 354 . . . . Core Remaining (%) 69 | 100 . . 48 . 60 . . . . . Volleys Fired 462 | 14 40 1 80 64 71 66 65 30 4 27 Largest 3 | 2 2 2 2 2 2 3 3 3 1 3 Hottest 250 | 70 90 70 83 106 100 161 169 169 60 250 Shots Fired 865 | 28 80 2 107 126 142 187 85 62 4 42 Gun 634 | 28 78 1 48 77 58 187 81 43 4 29 Cannon 218 | . . . 59 46 84 . 4 12 . 13 Launcher 13 | . 2 1 . 3 . . . 7 . . Special . | . . . . . . . . . . . Kinetic 368 | 14 6 . 50 47 84 111 14 32 . 10 Thermal 154 | 14 3 . 9 1 . 33 57 24 4 9 Explosive 5 | . 2 1 . 2 . . . . . . Electromagnetic 334 | . 69 1 48 76 58 43 14 6 . 19 Phasic 4 | . . . . . . . . . . 4 Robot Hit Streak 18 | 5 8 5 18 10 14 13 8 10 . 10 Robot Miss Streak 26 | 2 8 . 5 7 26 6 3 4 . 9 Penetration Max 1 | . . . . . . . . . . 1 Secondary Targets 3 | . . . . 1 . 2 . . . . Max Gunslinging Chain 1 | . . . . 1 . 1 . . . . Shots Hit Robots 525 | 18 43 1 44 93 113 120 24 40 . 29 Core Hits 408 | 6 22 2 17 94 120 63 20 41 . 23 Critical Kills 2 | . . . . . . . . . . 2 Critical Parts Destroyed 2 | . . . . . . . 2 . . . Critical Strikes 7 | . . . 1 . . 2 2 . . 2 Burn 2 | . . . . . . 2 . . . . Destroy 3 | . . . . . . . 1 . . 2 Corrupt 1 | . . . 1 . . . . . . . Smash 1 | . . . . . . . 1 . . . Melee Attacks 52 | . . . . 4 3 16 20 7 . 2 Impact 51 | . . . . 3 3 16 20 7 . 2 Slashing 1 | . . . . 1 . . . . . . Piercing . | . . . . . . . . . . . Sneak Attacks 1 | . . . . . . . 1 . . . Combat Hostiles . | . . . . . . . . . . . Follow-up Attacks . | . . . . . . . . . . . Damage Inflicted 14306 | 233 1034 131 579 2270 3165 3437 598 1616 . 1243 Guns 7902 | 233 667 . 427 918 1043 2614 331 645 . 1024 Cannons 3033 | . . . 152 908 1513 . 105 136 . 219 Explosions 3261 | . 367 131 . 444 609 823 52 835 . . Melee 110 | . . . . . . . 110 . . . Ramming . | . . . . . . . . . . . Kinetic 5601 | 119 25 . 152 1051 1513 1433 119 1033 . 156 Thermal 3484 | 114 151 . . 127 609 1269 108 462 . 644 Explosive 551 | . 229 131 . 191 . . . . . . Electromagnetic 4428 | . 629 . 427 901 1043 735 261 121 . 311 Impact 110 | . . . . . . . 110 . . . Slashing . | . . . . . . . . . . . Piercing . | . . . . . . . . . . . Phasic 132 | . . . . . . . . . . 132 Highest Corruption 20 | . . . . . 1 6 . 1 1 20 Average Corruption 1 | . . . . . 1 1 . 1 1 12 Corruption Purged 7 | . . . . . . 7 . . . . Corruption Blocked . | . . . . . . . . . . . Effects 31 | . . . . . 1 20 . 9 . 1 Message Errors 8 | . . . . . . 4 . 3 . 1 Matter Fused 8 | . . . . . . 6 . 2 . . Heat Flow Errors 4 | . . . . . . 2 . 2 . . Energy Discharges 3 | . . . . . . 3 . . . . Data Loss (minor) 4 | . . . . . 1 2 . 1 . . Data Loss (major) 1 | . . . . . . . . 1 . . Misfires 3 | . . . . . . 3 . . . . Overload Shots 4 | . . . . . . . . . 4 . Overflow Damage 265 | . 5 . . 9 18 122 110 . . 1 Projectiles 1 | . . . . . . . . . . 1 Explosions 154 | . 5 . . 9 18 122 . . . . Melee 110 | . . . . . . . 110 . . . Knockbacks 61 | . . . 2 15 42 . 1 . . 1 Impact 1 | . . . . . . . 1 . . . Kinetic 52 | . . . 2 14 35 . . . . 1 Secondary 8 | . . . . 1 7 . . . . . Self-Inflicted Damage 300 | . 71 . . 27 87 88 . 27 . . Shots 9 | . 2 . . 2 3 1 . 1 . . Rammed . | . . . . . . . . . . . Targets Rammed . | . . . . . . . . . . . Kicked . | . . . . . . . . . . . Crushed . | . . . . . . . . . . . Highest Temperature 372 | 45 231 9 . 126 264 372 215 270 68 262 Average Temperature 69 | 16 58 6 . 34 59 92 81 93 31 94 Received Heat Transfer 2022 | . 162 . 60 249 441 138 12 57 . 903 Effects 3 | . . . . . . . . 3 . . Interference 3 | . . . . . . . . 3 . . Siege Activations . | . . . . . . . . . . . Martial Activations . | . . . . . . . . . . . Shielding Activations . | . . . . . . . . . . . Robots Disrupted . | . . . . . . . . . . . Combat Hostiles . | . . . . . . . . . . . Robots Corrupted 6 | . . . 1 . 2 . 1 . . 2 Combat Hostiles 4 | . . . 1 . 1 . . . . 2 Parts Fried 27 | . 4 . 7 1 5 3 2 5 . . Impact Corruptions 5 | . . . . . . . 5 . . . Robots Melted . | . . . . . . . . . . . Combat Hostiles . | . . . . . . . . . . . Parts Melted 10 | . . . 1 . . 2 . 5 . 2 Heat Transferred 4751 | 333 237 . . 137 450 1599 161 1037 . 797 Parts Sabotaged . | . . . . . . . . . . . Parts Stolen . | . . . . . . . . . . . Parts Stripped . | . . . . . . . . . . . Power Chain Reactions 18 | . 4 . . 2 8 2 1 1 . . Alert | -11 -10 -10 -10 -8 -8 -7 -7 -7 -7 -7 ------- Run | Yrd Mat Min Sub Mat Sto Fac Low Low Zio Dee Maximum Alert Level 2 | . . . . 1 1 2 . . . . Low Security (%) 70 | 100 100 100 . 53 95 50 . . . . Level 1 29 | . . . . 46 4 48 . . . . Level 2 . | . . . . . . 1 . . . . Level 3 . | . . . . . . . . . . . Level 4 . | . . . . . . . . . . . Level 5 . | . . . . . . . . . . . High Security . | . . . . . . . . . . . Max Security . | . . . . . . . . . . . Peak Influence 416 | 10 118 52 . 347 255 416 . . . . Initial 74 | . . 23 . 28 11 74 . . . . Average 124 | 1 36 2 . 143 105 203 . . . . Influence Increases 4354 | 25 478 52 274 1121 927 987 190 300 . . Destroy 0b10 Robot/C 2300 | . 200 40 180 540 480 480 120 260 . . Destroy 0b10 Robot/NC 290 | 25 35 . . 95 75 60 . . . . Destroy Leader 610 | . 58 . 20 180 122 150 40 40 . . Allied During Kill 49 | . . 6 14 23 . 6 . . . . Trap Triggered on 0b10 10 | . . . . . 10 . . . . . Successful Hack 264 | . 32 . . 23 55 154 . . . . Select Force Hacks 120 | . 60 . . 30 30 . . . . . Disable Machine 270 | . 30 . . 90 45 105 . . . . Destroy Structure 201 | . 33 6 . 95 35 32 . . . . Lose Combat Pursuer 240 | . 30 . 60 45 75 . 30 . . . Influence Decreases 4354 | 25 417 113 219 1147 790 738 605 280 20 . Entered New Map 349 | . . 38 . 27 18 92 154 . 20 . Time Decay 3255 | 25 407 75 189 720 602 516 451 270 . . Lost Part 120 | . 10 . . 80 10 10 . 10 . . Lost Ally 180 | . . . 30 20 10 120 . . . . Purge Threat 450 | . . . . 300 150 . . . . . Squads Dispatched 23 | . 3 . . 5 4 11 . . . . Investigation 9 | . 3 . . 1 4 1 . . . . Extermination 7 | . . . . . . 7 . . . . Reinforcement 7 | . . . . 4 . 3 . . . . Assault . | . . . . . . . . . . . Garrison . | . . . . . . . . . . . Intercept . | . . . . . . . . . . . Searches Triggered . | . . . . . . . . . . . Construction Impeded 1 | . . . . 1 . . . . . . Haulers Reinforced . | . . . . . . . . . . . Active Scanning Responses . | . . . . . . . . . . . Cargo Convoy Interrupts . | . . . . . . . . . . . Stealth | -11 -10 -10 -10 -8 -8 -7 -7 -7 -7 -7 --------- Run | Yrd Mat Min Sub Mat Sto Fac Low Low Zio Dee Distress Signals 4 | . 1 . . 2 1 . . . . . Communications Jammed . | . . . . . . . . . . . Distress Signals . | . . . . . . . . . . . Times Spotted 232 | . 19 3 19 46 29 35 8 16 . 57 Peak Tracking Total 39 | . 3 3 6 5 9 4 3 4 . 39 Tactical Retreats 11 | . 1 . 3 2 3 . 2 . . . Traps | -11 -10 -10 -10 -8 -8 -7 -7 -7 -7 -7 ------- Run | Yrd Mat Min Sub Mat Sto Fac Low Low Zio Dee Traps Triggered 6 | . 1 . . . 2 3 . . . . Indirectly . | . . . . . . . . . . . Trap Hack Attempts 58 | . . . . . . 58 . . . . Triggered . | . . . . . . . . . . . Disarmed 1 | . . . . . . 1 . . . . Reprogrammed 4 | . . . . . . 4 . . . . Reused 1 | . . . . . 1 . . . . . Traps Extracted . | . . . . . . . . . . . Installed 1 | . . . . . 1 . . . . . Triggered 1 | . . . . . 1 . . . . . Most Traps Carried 1 | . . . 1 1 1 . . . . . Machines | -11 -10 -10 -10 -8 -8 -7 -7 -7 -7 -7 ---------- Run | Yrd Mat Min Sub Mat Sto Fac Low Low Zio Dee Machines Disabled 23 | . 2 . 1 6 3 7 . 1 3 . Max in Single Turn 6 | . 1 . 1 1 1 6 . 1 1 . Garrison Access 1 | . . . . 1 . . . . . . Machines Repaired . | . . . . . . . . . . . Machines Dismantled . | . . . . . . . . . . . Machines Sabotaged . | . . . . . . . . . . . Overloaded Fab Kills . | . . . . . . . . . . . Hacking | -11 -10 -10 -10 -8 -8 -7 -7 -7 -7 -7 --------- Run | Yrd Mat Min Sub Mat Sto Fac Low Low Zio Dee Machines Accessed 59 | . 11 . 2 14 15 14 1 2 . . Terminals 34 | . 8 . . 9 12 5 . . . . Fabricators 3 | . . . . . . 3 . . . . Repair Stations 7 | . 1 . . 2 1 3 . . . . Recycling Units 6 | . 2 . . 1 2 1 . . . . Scanalyzers 3 | . . . . 1 . 2 . . . . Garrison Access 1 | . . . . 1 . . . . . . Total Hacks 238 | . 45 . 4 62 73 51 1 2 . . Successful 151 | . 28 . 4 38 44 34 1 2 . . Failed 86 | . 17 . . 23 29 17 . . . . Catastrophic 2 | . . . . 1 . 1 . . . . Database Lockouts 1 | . . . . 1 . . . . . . Manual 109 | . 24 . . 30 42 13 . . . . Terminals 134 | . 29 . . 40 53 12 . . . . Fabricators 14 | . . . . . . 14 . . . . Repair Stations 45 | . 8 . . 12 11 14 . . . . Recycling Units 26 | . 8 . . 4 9 5 . . . . Scanalyzers 11 | . . . . 5 . 6 . . . . Garrison Access 1 | . . . . 1 . . . . . . Terminal Hacks 47 | . 7 . 4 12 18 3 1 2 . . Record 4 | . . . 3 . . . . 1 . . Part Schematic 5 | . . . . . 5 . . . . . Robot Analysis 8 | . 3 . . 1 3 1 . . . . Prototype ID Bank 3 | . . . . 2 1 . . . . . Open Door 6 | . . . . . 4 . 1 1 . . Branch Access Points 2 | . . . . 1 . 1 . . . . Terminal Index 2 | . 1 . . . 1 . . . . . Alert Level 1 | . . . . 1 . . . . . . Unreport Threat 3 | . . . . 2 1 . . . . . Locate Traps 5 | . 2 . . 2 1 . . . . . Transport Status 1 | . . . . 1 . . . . . . Hauler Manifests 3 | . 1 . . 1 1 . . . . . Registered Components 1 | . . . . . . 1 . . . . Zone Layout 2 | . . . . 1 1 . . . . . Proto ID Catalog 1 | . . . 1 . . . . . . . Fabricator Hacks 6 | . . . . . . 6 . . . . Network Status 1 | . . . . . . 1 . . . . Load Schematic 2 | . . . . . . 2 . . . . Build 3 | . . . . . . 3 . . . . Repair Station Hacks 32 | . 6 . . 8 7 11 . . . . Scan Component 17 | . 3 . . 4 4 6 . . . . Repair 15 | . 3 . . 4 3 5 . . . . Recycling Unit Hacks 5 | . 2 . . 1 1 1 . . . . Retrieve Components 5 | . 2 . . 1 1 1 . . . . Scanalyzer 8 | . . . . 4 . 4 . . . . Insert Component 3 | . . . . 2 . 1 . . . . Analyze 3 | . . . . 2 . 1 . . . . Retrieve Study 2 | . . . . . . 2 . . . . Garrison Access Hacks 1 | . . . . 1 . . . . . . Seal Access 1 | . . . . 1 . . . . . . Unauthorized Hacks 52 | . 13 . . 12 18 9 . . . . Terminals 39 | . 9 . . 11 15 4 . . . . Track 5 | . 1 . . 2 2 . . . . . Assimilate 3 | . . . . 1 . 2 . . . . Botnet 9 | . 2 . . 3 4 . . . . . Disrupt 2 | . . . . . 2 . . . . . Operators 2 | . 1 . . . 1 . . . . . Skim 18 | . 5 . . 5 6 2 . . . . Fabricators 3 | . . . . . . 3 . . . . Report 1 | . . . . . . 1 . . . . Liberate 1 | . . . . . . 1 . . . . Haulers 1 | . . . . . . 1 . . . . Repair Stations . | . . . . . . . . . . . Recycling Units 10 | . 4 . . 1 3 2 . . . . Reject 3 | . 1 . . . 1 1 . . . . Mask 3 | . 1 . . . 1 1 . . . . Tunnel 4 | . 2 . . 1 1 . . . . . Scanalyzers . | . . . . . . . . . . . Garrison Access . | . . . . . . . . . . . Data Cores Recovered 1 | . . . . 1 . . . . . . Used . | . . . . . . . . . . . Hacking Detections 48 | . 11 . . 12 12 13 . . . . Full Trace Events 6 | . 2 . . 1 2 1 . . . . Feedback Events 2 | . . . . . 2 . . . . . Corruption 1 | . . . . . 1 . . . . . Hackware Fried 1 | . . . . . 1 . . . . . Feedback Blocked . | . . . . . . . . . . . Robot Schematics Acquired . | . . . . . . . . . . . Robots Built . | . . . . . . . . . . . Authchips . | . . . . . . . . . . . Time . | . . . . . . . . . . . Total Robot Build Rating . | . . . . . . . . . . . Part Schematics Acquired 8 | . . . . 2 5 1 . . . . Parts Built 5 | . . . . . . 5 . . . . Authchips 1 | . . . . . . 1 . . . . Time 257 | . . . . . . 257 . . . . Total Part Build Rating 24 | . . . . . . 24 . . . . Part Studies Acquired 2 | . . . . . . 2 . . . . Parts Repaired 15 | . 3 . . 4 3 5 . . . . Time 699 | . 78 . . 310 68 243 . . . . Parts Recycled . | . . . . . . . . . . . Recycled Matter . | . . . . . . . . . . . Retrieved Matter . | . . . . . . . . . . . Retrieved Components 41 | . 12 . . 10 9 10 . . . . Parts Scanalyzed 3 | . . . . 2 . 1 . . . . Part Schematics Acquired 3 | . . . . 2 . 1 . . . . Parts Damaged 1 | . . . . 1 . . . . . . Bothacking | -11 -10 -10 -10 -8 -8 -7 -7 -7 -7 -7 ------------ Run | Yrd Mat Min Sub Mat Sto Fac Low Low Zio Dee Used RIF Installer . | . . . . . . . . . . . Robots Hacked . | . . . . . . . . . . . Non-combat . | . . . . . . . . . . . Combat . | . . . . . . . . . . . Robot Hacks Applied . | . . . . . . . . . . . Relay Couplers Released . | . . . . . . . . . . . Fabnet Peak Effective % . | . . . . . . . . . . . Robots Rewired . | . . . . . . . . . . . Allies Hacked . | . . . . . . . . . . . Hacks Repelled . | . . . . . . . . . . . Allies | -11 -10 -10 -10 -8 -8 -7 -7 -7 -7 -7 -------- Run | Yrd Mat Min Sub Mat Sto Fac Low Low Zio Dee Total Allies 20 | . . 3 8 1 . 4 . . 4 . Largest Group 6 | . . 3 6 2 1 3 . . 4 4 Highest-Rated Group 186 | . . 40 114 38 10 48 . . 186 186 Highest-Rated Ally 99 | . . 16 19 19 10 26 . . 99 99 Total Orders 38 | . . 2 5 1 1 29 . . . . STAY 13 | . . 1 3 1 1 7 . . . . FOLLOW 18 | . . 1 2 . . 15 . . . . EXPLORE 6 | . . . . . . 6 . . . . RETURN 1 | . . . . . . 1 . . . . Ally Attacks 149 | . . . 29 26 . 34 . . . 60 Total Damage 3881 | . . . 672 707 . 366 . . . 2136 Kills 29 | . . . 6 12 . 2 . . . 9 Allies Corrupted . | . . . . . . . . . . . Allies Melted . | . . . . . . . . . . . Intel | -11 -10 -10 -10 -8 -8 -7 -7 -7 -7 -7 ------- Run | Yrd Mat Min Sub Mat Sto Fac Low Low Zio Dee Active Infowar (turns) 14880 | 8 1371 1180 2169 2146 1132 2536 2496 1842 . . Sensors 8698 | . . 2 . 1031 791 2536 2496 1842 . . Terrain 5841 | 8 1371 1178 2169 1115 . . . . . . Traps 814 | . . . . . 718 96 . . . . Robot Analysis Total 8 | . 3 . . 1 3 1 . . . . Derelict Logs Recovered 7 | . . 1 2 . . . 1 3 . . Drone Launches 18 | . . . . . 14 4 . . . . Drone Recoveries 4 | . . . . . . 4 . . . . Exploration | -11 -10 -10 -10 -8 -8 -7 -7 -7 -7 -7 ------------- Run | Yrd Mat Min Sub Mat Sto Fac Low Low Zio Dee Turns Passed 25872 | 143 1371 1180 5170 4128 2072 3092 2575 2055 2388 1698 Spaces Moved 13457 | 72 906 656 2174 1649 957 1426 1608 1400 1579 1030 Core 21 | 21 . . . . . . . . . . Treads 31 | . . . . . 4 . . . . 27 Legs 4542 | 51 906 656 2174 755 . . . . . . Wheels 8863 | . . . . 894 953 1426 1608 1400 1579 1003 Hover . | . . . . . . . . . . . Flight . | . . . . . . . . . . . Fastest Speed 50 | 50 120 120 120 145 145 130 130 130 130 115 Average Speed 162 | 116 120 168 223 197 156 155 140 130 139 143 Slowest Speed 400 | 200 190 190 260 260 400 185 145 130 145 249 Overloaded Moves . | . . . . . . . . . . . Propulsion Burnouts . | . . . . . . . . . . . Robots Hopped . | . . . . . . . . . . . Potential Cave-ins . | . . . . . . . . . . . Cave-ins Triggered . | . . . . . . . . . . . Exploration Rate (%) 77 | 5 97 98 96 86 87 37 92 95 87 69 Regions Visited 10 Branch Regions 7 Pre-discovered Areas 11 | . 2 . 1 4 2 . . 1 1 . Known Exits Taken 5 | . . . . 1 1 1 1 1 . . Unknown Exits Taken 5 | 1 1 1 1 . . . . . 1 . Scrap Searched 19 | . . 2 1 . . . 5 7 4 . Spaces Dug 70 | . . . 3 4 . 13 19 24 . 7 Terrain Destroyed 293 | . 28 6 3 32 43 31 40 103 . 7 Melee 39 | . . . . 4 . 13 17 3 . 2 Projectile 31 | . . . 3 . . . 19 4 . 5 AOE 223 | . 28 6 . 28 43 18 4 96 . . Terrain Rammed . | . . . . . . . . . . . Walls Destroyed . | . . . . . . . . . . . Machines Disabled . | . . . . . . . . . . . Actions | -11 -10 -10 -10 -8 -8 -7 -7 -7 -7 -7 --------- Run | Yrd Mat Min Sub Mat Sto Fac Low Low Zio Dee Total 16543 | 99 1106 729 2377 2383 1376 2149 1800 1569 1761 1194 Wait 1915 | . 125 64 88 559 262 453 56 103 142 63 Move 13447 | 71 905 655 2173 1648 956 1425 1607 1399 1578 1030 Hop . | . . . . . . . . . . . Pick Up 149 | 7 8 3 13 37 13 29 7 5 8 19 Fast Attach 48 | 7 4 . . 9 4 11 5 4 2 2 Attach 68 | . 2 . 4 16 4 11 2 2 7 20 Detach 12 | . 1 . . 2 . 5 . . 2 2 Swap 182 | . 13 4 13 20 32 48 22 12 9 9 Drop 130 | . 8 2 6 24 15 27 12 7 9 20 Fire 462 | 14 40 1 80 64 71 66 65 30 4 27 Melee 52 | . . . . 4 3 16 20 7 . 2 Ram . | . . . . . . . . . . . Kick . | . . . . . . . . . . . Crush . | . . . . . . . . . . . Escape Stasis 8 | . . . . . 8 . . . . . Rewire 4 | . . . . . . . 4 . . . Trap 59 | . . . . . 1 58 . . . . Miscellaneous 7 | . . . . . 7 . . . . . Route ------- -11/Scrapyard -10/Materials (discovered 5 exits: [*Mat x3] / [*Min x2]) -10/Mines (discovered 4 exits: [*Mat x2] / [*Exi] / *Sub) -10/Subcaves (discovered 3 exits: *Mat x2 / [*Rec]) -8/Materials (discovered 4 exits: *Fac x3 / *Sto) -8/Storage (discovered 2 exits: *Fac / [*Rec]) -7/Factory (discovered 5 exits: *Fac x3 / *Low x2) -7/Lower Caves -7/Lower Caves (discovered 2 exits: *Fac / *Zio) -7/Zion (discovered 2 exits: [*Dee] / [*Pro]) -7/Deep Caves (discovered 1 exit: [*Pro]) History --------- Turn | Location | Event 30 | -11/Scrapyard | Discovered new exit (range 15) 144 | -11/Scrapyard | Entered Materials 312 | -10/Materials | Build established: Mutant 401 | -10/Materials | Discovered new exit (range 8) 539 | -10/Materials | Discovered new exit (range 7) 543 | -10/Materials | Discovered new exit (range 10) 760 | -10/Materials | Discovered new exit (range 11) 830 | -10/Materials | Discovered new exit (range 5) 1230 | -10/Materials | Repaired Beam Cannon 1257 | -10/Materials | Repaired EM Pulse Gun 1284 | -10/Materials | Repaired EM Pulse Gun 1515 | -10/Materials | Entered Mines 1526 | -10/Mines | Deemed a non-threat by the Exiles lab entrance 1526 | -10/Mines | Discovered new exit (range 5) 1597 | -10/Mines | Assisted by bots powering up and referring to "LRC-V3" 1651 | -10/Mines | Learned 2 Materials zone layouts 1653 | -10/Mines | Discovered new exit (range 5) 1688 | -10/Mines | Discovered new exit (range 10) 1868 | -10/Mines | Found a damaged Exp. Sensor Array with a note attached 1872 | -10/Mines | Found Prototype Device 1873 | -10/Mines | Identified Exp. Sensor Array 2381 | -10/Mines | Discovered new exit (range 13) 2557 | -10/Mines | A weapon hastily lodged in a ceiling crevice suddenly fell to the ground 2695 | -10/Mines | Entered Subcaves 2695 | -10/Subcaves | Accompanied by 3 allies 2701 | -10/Subcaves | Learned Materials terminal intel 2895 | -10/Subcaves | Shifting Twisted Machinery released Riot Gun 2912 | -10/Subcaves | Shifting Twisted Machinery released Sub. Optics 3123 | -10/Subcaves | A swath of the cavern ceiling suddenly collapsed 3243 | -10/Subcaves | Learned location of Zion (-7) 3243 | -10/Subcaves | Met a Zionite searching for "candidates" 3244 | -10/Subcaves | Discovered new exit (range 6) 3675 | -10/Subcaves | Core integrity fell below 50% 3753 | -10/Subcaves | Discovered new exit (range 14) 3996 | -10/Subcaves | Shifting Twisted Machinery released Barrage Gun 3998 | -10/Subcaves | Shifting Twisted Machinery released Piercing Trap 4494 | -10/Subcaves | Visited triangular shrine 4510 | -10/Subcaves | Found Prototype Device 4511 | -10/Subcaves | Identified V3-11A's Pendant 4516 | -10/Subcaves | Befriended Subdweller 5057 | -10/Subcaves | Visited 4L-MR0's lab 5082 | -10/Subcaves | Found Meta Core 5388 | -10/Subcaves | Shifting Twisted Machinery released Flamer 5481 | -10/Subcaves | Shifting Twisted Machinery released Sub. Shrapnel Launcher 5600 | -10/Subcaves | Befriended Subdweller 5775 | -10/Subcaves | Befriended Subdweller 5775 | -10/Subcaves | Befriended Subdweller 5870 | -10/Subcaves | Befriended Subdweller 5870 | -10/Subcaves | Befriended Subdweller 6516 | -10/Subcaves | Learned Materials stockpile data 6560 | -10/Subcaves | Befriended Subdweller 6594 | -10/Subcaves | Discovered new exit (range 6) 6690 | -10/Subcaves | Befriended Subdweller 6737 | -10/Subcaves | Visited Clippyterm 6745 | -10/Subcaves | Learned Research security intel 7865 | -10/Subcaves | Entered Materials 7865 | -8/Materials | Accompanied by 2 allies 7865 | -8/Materials | Evolved 4 slots: Utility x4 7868 | -8/Materials | Loaded intel: 12 terminal locations 8201 | -8/Materials | Build established: Scavenger-Mutant 8211 | -8/Materials | Identified exit to Storage 8512 | -8/Materials | Discovered new exit (range 15) 8799 | -8/Materials | Discovered new exit (range 16) 9146 | -8/Materials | Build established: Hacker-Mutant 9624 | -8/Materials | Repaired Corrupted Adv. Heat Sink 9908 | -8/Materials | Lost 4 parts (1p2u1w) 10215 | -8/Materials | Central database locked down 10282 | -8/Materials | Learned 2 Lower Caves zone layouts 10422 | -8/Materials | Learned Storage emergency access door positions 10439 | -8/Materials | Repaired Mak. Thermal Plating 10452 | -8/Materials | Learned Recycling recycling unit intel 10536 | -8/Materials | Identified exit to Factory 10747 | -8/Materials | Repaired Broken Exp. Sensor Array 11257 | -8/Materials | Repaired Hvy. EM Shotgun 11993 | -8/Materials | Entered Storage 11993 | -8/Storage | Accompanied by 1 ally 12150 | -8/Storage | Destroyed 9 combat bots 12584 | -8/Storage | Used back door to open Recycling access 12584 | -8/Storage | Discovered new exit (range 5) 12692 | -8/Storage | Learned location of 2 exits from Lower Caves 12728 | -8/Storage | Learned Factory recycling unit intel 12752 | -8/Storage | Discovered exit to Factory (range 14) 12755 | -8/Storage | Learned location of 3 exits from Factory 12779 | -8/Storage | Learned location of 1 exit from Storage 12798 | -8/Storage | Learned 4 Recycling zone layouts 12826 | -8/Storage | Learned location of 1 exit from Lower Caves 12864 | -8/Storage | Build established: Hacker-Skirmisher 13221 | -8/Storage | Build established: Hacker-Mutant 13681 | -8/Storage | Repaired Hrd. Medium Armor Plating 13712 | -8/Storage | Repaired Hvy. EM Shotgun 13733 | -8/Storage | Repaired EM Pulse Cannon 13734 | -8/Storage | Hacking Suite fried by hacking feedback 14056 | -8/Storage | Build established: Mutant 14065 | -8/Storage | Entered Factory 14065 | -7/Factory | Accompanied by 14 allies 14065 | -7/Factory | Evolved 2 slots: Utility x1, Weapon x1 14066 | -7/Factory | Identified exit to Factory 14067 | -7/Factory | Loaded intel: 6 recycling unit locations 14390 | -7/Factory | Discovered new exit (range 44) 14948 | -7/Factory | Fabricated Angular Momentum Engine (x2) 14993 | -7/Factory | Lost 9 allies 15190 | -7/Factory | Identified exit to Lower Caves 15526 | -7/Factory | Fabricated Cld. Pulse Rifle (x1) 15652 | -7/Factory | Build established: Hacker-Skirmisher 15956 | -7/Factory | Build established: Hacker-Tank 15996 | -7/Factory | Fabricated Imp. System Restoration Module (x2) 16291 | -7/Factory | Build established: Hacker-Mutant 16420 | -7/Factory | Repaired Hvy. EM Shotgun 16805 | -7/Factory | Repaired Mak. Thermal Plating 16856 | -7/Factory | Repaired Drone Bay 16867 | -7/Factory | Build established: Hacker-Skirmisher 16908 | -7/Factory | Repaired Cld. Ion Engine 17038 | -7/Factory | Repaired Broken Exp. Sensor Array 17157 | -7/Factory | Entered Lower Caves 17158 | -7/Lower Caves | Identified exit to Lower Caves 17277 | -7/Lower Caves | Build established: Tank 17595 | -7/Lower Caves | Spotted B-75 Beast 18800 | -7/Lower Caves | Found Prototype Device 18957 | -7/Lower Caves | Found Alien Artifact 18957 | -7/Lower Caves | Identified Core Expander 18957 | -7/Lower Caves | Installed Core Expander, added new Propulsion slot 19106 | -7/Lower Caves | Identified Heart of Steel 19293 | -7/Lower Caves | Learned Factory stockpile data 19468 | -7/Lower Caves | Build established: Skirmisher 19597 | -7/Lower Caves | Murdered Warlord Statue 19732 | -7/Lower Caves | Entered another Lower Caves area 19733 | -7/Lower Caves | Identified exit to Zion 19822 | -7/Lower Caves | Attracted the attention of an 0b10 checkpoint 19939 | -7/Lower Caves | Learned 4 Factory zone layouts 20172 | -7/Lower Caves | Attacked by a faux Warlord 20510 | -7/Lower Caves | Found Alien Artifact 21339 | -7/Lower Caves | Learned location of 2 exits from Factory 21695 | -7/Lower Caves | Identified Dimensional Node Initializer 21695 | -7/Lower Caves | Initialized slip node 21787 | -7/Lower Caves | Entered Zion 21824 | -7/Zion | System corruption cleaned by Quarantine Array 21878 | -7/Zion | Discovered new exit (range 12) 22005 | -7/Zion | Build established: Gunner 22143 | -7/Zion | Given the Hacking Drone Bay 22408 | -7/Zion | Found Prototype Device 22408 | -7/Zion | Identified Mobile Refinery Mk. CCLXVII 22495 | -7/Zion | Heart of Steel transformed into Warbot 23038 | -7/Zion | Met Imprinter 23105 | -7/Zion | Gained Derelict followers 23502 | -7/Zion | Discovered new exit (range 5) 23508 | -7/Zion | Saw the warning signs outside the Deep Caves entrance 23656 | -7/Zion | Found Prototype Device 24015 | -7/Zion | Attached Meta Core, gained temporary slots: Propulsion, Utility, Weapon 24020 | -7/Zion | Found Prototype Energy Gun 24020 | -7/Zion | Identified Storm Laser 24043 | -7/Zion | Identified Hacking Drone Bay 24175 | -7/Zion | Entered Deep Caves 24175 | -7/Deep Caves | Accompanied by 4 allies (Warbot) 24294 | -7/Deep Caves | Attacked by Z-Imprinter 24305 | -7/Deep Caves | Destroyed Z-Imprinter 24315 | -7/Deep Caves | Build established: Tank 24442 | -7/Deep Caves | Z-Facility disabled 24558 | -7/Deep Caves | Found Prototype Protection 24559 | -7/Deep Caves | Identified Zio. Weapon Casing 24707 | -7/Deep Caves | Discovered new exit (range 9) 25004 | -7/Deep Caves | Spotted AG-80770 25076 | -7/Deep Caves | Destroyed AG-80770 25189 | -7/Deep Caves | Spotted AG-48115 25226 | -7/Deep Caves | Lost 3 parts (1n1u1w) 25227 | -7/Deep Caves | Destroyed AG-48115 25232 | -7/Deep Caves | Found GOLEM Unit 25324 | -7/Deep Caves | Build established: Mutant 25484 | -7/Deep Caves | Found Prototype Protection 25484 | -7/Deep Caves | Identified Zio. Heavy Carapace 25504 | -7/Deep Caves | Found Zio. Heavy Carapace 25844 | -7/Deep Caves | Triggered Deep Caves wall 25844 | -7/Deep Caves | Spotted AS-71193 25844 | -7/Deep Caves | Spotted AS-30371 25860 | -7/Deep Caves | System corruption reached 10% 25867 | -7/Deep Caves | Core integrity fell below 50% 25871 | -7/Deep Caves | Core integrity fell below 20% 25873 | -7/Deep Caves | Self-destructed Last Messages --------------- 25865_ as-54475 destroyed. 25865_ Slug Cannon destroyed. 25866_ Arm. Treads destroyed. 25866_ Zio. Phaser-S destroyed. 25866_ Penetrated by Slug. 25866_ as-51883 destroyed. 25867_ Weapon Cycler destroyed. 25867_ Exp. Heat Sink destroyed. 25867_ System corrupted by crushing effect (+4). 25867_ Critical hit (Destroy). 25867_ Med. Treads destroyed. 25868_ 8NXF3CJ|G66LOTY=G